[Event "Romanian Women Championship 2024"]
[Site "Eforie Nord"]
[Date "2024.02.24"]
[Round "1.6"]
[White "Cosman, Andreea-Marioara"]
[Black "Bira, Andrada-Paraschiva"]
[Result "1/2-1/2"]
[ECO "D30"]
[WhiteElo "2108"]
[BlackElo "1590"]
[Annotator "ChessBase"]
[PlyCount "139"]
[EventDate "2024.02.24"]
[EventType "swiss"]
[EventCountry "ROU"]
[SourceTitle "playchess.com"]
[Source "ChessBase"]
[SourceQuality "1"]
[TimeControl "40/5400+30:900+30"]

1. Nf3 {[%emt 0:00:04]} Nf6 {[%emt 0:00:25]} 2. d4 {[%emt 0:00:06]} e6 {[%emt 0:00:22]} 3. c4 {[%emt 0:00:13]} d5 {[%emt 0:00:28]} 4. e3 {[%emt 0:01:17]} Be7 {[%emt 0:01:45]} 5. Nbd2 {[%emt 0:00:10]} Nbd7 {[%emt 0:01:52]} 6. b3 {[%emt 0:01:47]} c5 {[%emt 0:00:36]} 7. Bb2 {[%emt 0:03:16]} O-O {[%emt 0:04:25]} 8. Be2 {[%emt 0:07:33]} b6 {[%emt 0:01:47]} 9. cxd5 {[%emt 0:01:52]} Nxd5 {[%emt 0:04:09]} 10. O-O {[%emt 0:02:03]} Bb7 {[%emt 0:01:10]} 11. a3 {[%emt 0:17:02]} Rc8 {[%emt 0:01:28]} 12. dxc5 {[%emt 0:01:43]} Nxc5 {[%emt 0:01:45]} 13. b4 {[%emt 0:00:35]} Nd7 {[%emt 0:03:44]} 14. Nc4 {[%emt 0:08:09]} Bf6 {[%emt 0:06:07]} 15. Bd4 {[%emt 0:09:12]} Qe7 {[%emt 0:01:42]} 16. Rc1 {[%emt 0:03:36]} Rfd8 {[%emt 0:02:54]} 17. Qb3 {[%emt 0:01:10]} Bxd4 {[%emt 0:09:30]} 18. Nxd4 {[%emt 0:00:20]} N7f6 {[%emt 0:03:13]} 19. Rfd1 {[%emt 0:07:53]} h6 {[%emt 0:11:39]} 20. f3 {[%emt 0:10:48]} Ne8 {[%emt 0:06:47]} 21. f4 {[%emt 0:03:32]} Qf6 {[%emt 0:00:24]} 22. Bf3 {[%emt 0:02:07]} Ba8 {[%emt 0:01:54]} 23. Ne5 {[%emt 0:06:24]} Rxc1 {[%emt 0:06:22]} 24. Rxc1 {[%emt 0:00:04]} Ne7 {[%emt 0:14:20]} 25. Bxa8 {[%emt 0:01:43]} Rxa8 {[%emt 0:00:07]} 26. Ndc6 {[%emt 0:03:52]} Nxc6 {[%emt 0:01:38]} 27. Rxc6 {[%emt 0:00:22]} Rd8 {[%emt 0:00:53]} 28. Qc2 {[%emt 0:01:24]} Qe7 {[%emt 0:06:44]} 29. h3 {[%emt 0:01:19]} Qb7 {[%emt 0:01:06]} 30. b5 {[%emt 0:02:14]} Qe7 {[%emt 0:01:29]} 31. Rc8 {[%emt 0:01:21]} Qd6 {[%emt 0:00:44]} 32. Rxd8 {[%emt 0:02:08]} Qxd8 {[%emt 0:00:07]} 33. Qc6 {[%emt 0:00:51]} Nd6 {[%emt 0:01:26]} 34. a4 {[%emt 0:00:34]} Kf8 {[%emt 0:02:10]} 35. Kh2 {[%emt 0:00:33]} Ke7 {[%emt 0:00:39]} 36. Qc3 {[%emt 0:00:39]} Kf8 {[%emt 0:00:16]} 37. Qb4 {[%emt 0:00:19]} Kg8 {[%emt 0:00:34]} 38. Nc6 {[%emt 0:00:11]} Qd7 {[%emt 0:00:35]} 39. e4 {[%emt 0:00:41]} Nc8 {[%emt 0:00:10]} 40. Qc3 {[%emt 0:00:00]} Qc7 {[%emt 0:00:00]} 41. Qd2 {[%emt 0:05:55]} Ne7 {[%emt 0:03:56]} 42. Qd8+ {[%emt 0:01:13]} Qxd8 {[%emt 0:00:09]} 43. Nxd8 {[%emt 0:00:06]} Kf8 {[%emt 0:00:13]} 44. Kg3 {[%emt 0:00:36]} Ke8 {[%emt 0:00:22]} 45. Nb7 {[%emt 0:01:01]} Kd7 {[%emt 0:00:07]} 46. a5 {[%emt 0:01:31]} Kc7 {[%emt 0:01:02]} 47. a6 {[%emt 0:00:13]} Nc8 {[%emt 0:00:20]} 48. e5 {[%emt 0:00:49]} Kd7 {[%emt 0:01:28]} 49. Kf3 {[%emt 0:00:24]} Kc7 {[%emt 0:00:59]} 50. g4 {[%emt 0:00:49]} Kd7 {[%emt 0:00:28]} 51. h4 {[%emt 0:02:32]} Kc7 {[%emt 0:02:19]} 52. Ke4 {[%emt 0:00:15]} Kd7 {[%emt 0:00:27]} 53. f5 {[%emt 0:03:09]} Kc7 {[%emt 0:04:14]} 54. Kf4 {[%emt 0:01:13]} Kd7 {[%emt 0:00:43]} 55. fxe6+ {[%emt 0:01:04]} fxe6 {[%emt 0:00:45]} 56. g5 {[%emt 0:00:52]} Ne7 {[%emt 0:01:44]} 57. gxh6 {[%emt 0:01:00]} gxh6 {[%emt 0:00:09]} 58. Kg4 {[%emt 0:00:20]} Ng6 {[%emt 0:00:21]} 59. Kh5 {[%emt 0:00:22]} Nxe5 {[%emt 0:00:12]} 60. Kxh6 {[%emt 0:00:04]} Ke7 {[%emt 0:03:52]} 61. Kg7 {[%emt 0:01:22]} Ng4 {[%emt 0:00:16]} 62. h5 {[%emt 0:00:32]} e5 {[%emt 0:00:07]} 63. h6 {[%emt 0:00:55]} Nxh6 {[%emt 0:00:42]} 64. Kxh6 {[%emt 0:00:04]} e4 {[%emt 0:00:06]} 65. Nc5 {[%emt 0:00:02]} e3 {[%emt 0:00:18]} 66. Nd3 {[%emt 0:00:58]} Kd6 {[%emt 0:00:09]} 67. Kg5 {[%emt 0:00:40]} e2 {[%emt 0:00:08]} 68. Kf4 {[%emt 0:00:43]} e1=Q {[%emt 0:00:10]} 69. Nxe1 {[%emt 0:00:04]} Kc5 {[%emt 0:00:08]} 70. Ke3 {[%emt 0:00:21]} 1/2-1/2

[Event "Romanian Women Championship 2024"]
[Site "Eforie Nord"]
[Date "2024.02.24"]
[Round "1.7"]
[White "Sunea, Sara Maria"]
[Black "Pirvulescu, Ekaterina"]
[Result "0-1"]
[ECO "B22"]
[WhiteElo "1561"]
[BlackElo "2091"]
[Annotator "NA RC"]
[PlyCount "90"]
[EventDate "2024.02.24"]
[EventType "swiss"]
[EventCountry "ROU"]
[SourceTitle "playchess.com"]
[Source "ChessBase"]
[SourceQuality "1"]
[TimeControl "40/5400+30:900+30"]

1. e4 {[%emt 0:00:03]} c5 {[%emt 0:00:11]} 2. c3 {[%emt 0:00:07]} d5 {[%emt 0:00:24]} 3. exd5 {[%emt 0:00:17]} Qxd5 {[%emt 0:00:11]} 4. d4 {[%emt 0:00:11]} e6 {[%emt 0:00:30]} 5. Nf3 {[%emt 0:00:37]} Nf6 {[%emt 0:00:28]} 6. Bd3 {[%emt 0:02:50]} Be7 {[%emt 0:01:55]} 7. Be3 {[%emt 0:02:52]} O-O {[%emt 0:01:52]} 8. O-O {[%emt 0:00:12]} Rd8 {[%emt 0:01:15]} 9. Nbd2 {[%emt 0:05:16]} Nbd7 {[%emt 0:08:08]} 10. c4 {[%emt 0:03:53]} Qh5 {[%emt 0:02:52]} 11. Be2 {[%emt 0:08:51]} Ng4 {[%emt 0:14:45]} 12. h3 {[%emt 0:01:24]} Nxe3 {[%emt 0:00:35]} 13. fxe3 {[%emt 0:00:03]} Qh6 {[%emt 0:01:53]} 14. Qb3 {[%emt 0:04:56]} Nf6 {[%emt 0:16:20]} 15. Rad1 {[%emt 0:04:17]} Bd7 {[%emt 0:05:16]} 16. Ne5 {[%emt 0:06:38]} Be8 {[%emt 0:04:29]} 17. Bf3 {[%emt 0:04:44]} cxd4 {[%emt 0:03:57]} 18. exd4 {[%emt 0:00:21]} Rxd4 {[%emt 0:04:35]} 19. Bxb7 {[%emt 0:03:57]} Rad8 {[%emt 0:04:43]} 20. Ndf3 {[%emt 0:02:34]} Rxd1 {[%emt 0:01:40]} 21. Rxd1 {[%emt 0:00:02]} Rxd1+ {[%emt 0:00:59]} 22. Qxd1 {[%emt 0:00:02]} Qe3+ {[%emt 0:00:42]} 23. Kh1 {[%emt 0:00:42]} Qb6 {[%emt 0:05:05]} 24. Qb3 {[%emt 0:01:57]} Qc7 {[%emt 0:01:47]} 25. Ba8 {[%emt 0:07:19]} Bd6 {[%emt 0:02:03]} 26. Qc3 {[%emt 0:03:14]} a5 {[%emt 0:05:10]} 27. Nd3 {[%emt 0:06:39]} Nd7 {[%emt 0:08:52]} 28. Nd4 {[%emt 0:03:42]} Nc5 {[%emt 0:03:14]} 29. Nxc5 {[%emt 0:02:21]} Qxc5 {[%emt 0:00:29]} 30. Nb3 {[%emt 0:02:00]} Qf2 {[%emt 0:00:25]} 31. Qc1 {[%emt 0:00:33]} Bf4 {[%emt 0:00:31]} 32. Qb1 {[%emt 0:01:56]} a4 {[%emt 0:00:38]} 33. Na5 {[%emt 0:01:29]} Qg3 {[%emt 0:00:26]} 34. Qg1 {[%emt 0:00:10]} Be3 {[%emt 0:00:32]} 35. Qf1 {[%emt 0:00:27]} Qc7 {[%emt 0:00:22]} 36. b4 {[%emt 0:02:01]} Bb6 {[%emt 0:00:39]} 37. Qe1 {[%emt 0:02:41]} Bxa5 {[%emt 0:00:24]} 38. bxa5 {[%emt 0:00:02]} Qxc4 {[%emt 0:00:07]} 39. Qd2 {[%emt 0:00:26]} Qc8 {[%emt 0:00:45]} 40. Bf3 {[%emt 0:00:00]} Bb5 {[%emt 0:00:00]} 41. Bb7 {[%emt 0:02:29]} Qb8 {[%emt 0:04:46]} 42. a6 {[%emt 0:01:07]} h6 {[%emt 0:02:04]} 43. a7 {[%emt 0:00:59]} Qxa7 {[%emt 0:00:28]} 44. Be4 {[%emt 0:02:06]} Qd7 {[%emt 0:00:35]} 45. Qa5 {[%emt 0:00:23]} f5 {[%emt 0:02:21]} 0-1

[Event "Romanian Women Championship 2024"]
[Site "Eforie Nord"]
[Date "2024.02.24"]
[Round "1.8"]
[White "Trifoi, Mihaela-Ioana"]
[Black "Petculescu, Diana-Silvana"]
[Result "1-0"]
[ECO "B51"]
[WhiteElo "2003"]
[BlackElo "1556"]
[Annotator "NA"]
[PlyCount "59"]
[EventDate "2024.02.24"]
[EventType "swiss"]
[EventCountry "ROU"]
[SourceTitle "playchess.com"]
[Source "ChessBase"]
[SourceQuality "1"]
[TimeControl "40/5400+30:900+30"]

1. e4 {[%emt 0:00:07]} c5 {[%emt 0:00:09]} 2. Nf3 {[%emt 0:00:07]} d6 {[%emt 0:00:09]} 3. Bb5+ {[%emt 0:00:08]} Nd7 {[%emt 0:00:11]} 4. c3 {[%emt 0:00:28]} a6 {[%emt 0:00:51]} 5. Bxd7+ {[%emt 0:04:14]} Bxd7 {[%emt 0:01:22]} 6. d4 {[%emt 0:00:13]} Qc7 {[%emt 0:04:51]} 7. O-O {[%emt 0:00:44]} e6 {[%emt 0:02:15]} 8. Re1 {[%emt 0:06:47]} O-O-O {[%emt 0:07:22]} 9. Bf4 {[%emt 0:05:15]} h6 {[%emt 0:12:50]} 10. b4 {[%emt 0:09:27]} g5 {[%emt 0:02:03]} 11. Bg3 {[%emt 0:00:10]} f5 {[%emt 0:04:41]} 12. exf5 {[%emt 0:03:58]} exf5 {[%emt 0:00:30]} 13. h4 {[%emt 0:00:05]} f4 {[%emt 0:03:00]} 14. Bh2 {[%emt 0:00:06]} Be7 {[%emt 0:00:31]} 15. bxc5 {[%emt 0:07:15]} g4 {[%emt 0:07:48]} 16. cxd6 {[%emt 0:00:38]} Qxd6 {[%emt 0:08:19]} 17. Ne5 {[%emt 0:03:56]} Rf8 {[%emt 0:02:26]} 18. Nd2 {[%emt 0:06:02]} Bxh4 {[%emt 0:12:46]} 19. Ndc4 {[%emt 0:00:38]} Qf6 {[%emt 0:00:45]} 20. Nxd7 {[%emt 0:00:32]} Kxd7 {[%emt 0:01:27]} 21. Qxg4+ {[%emt 0:00:23]} Kc7 {[%emt 0:00:51]} 22. Re6 {[%emt 0:00:00]} Qg5 {[%emt 0:05:13]} 23. Qf3 {[%emt 0:04:41]} Ne7 {[%emt 0:00:55]} 24. Rb1 {[%emt 0:03:37]} Nc6 {[%emt 0:04:10]} 25. Rxb7+ {[%emt 0:01:25]} Kxb7 {[%emt 0:01:35]} 26. Qxc6+ {[%emt 0:00:07]} Kb8 {[%emt 0:00:55]} 27. Qb6+ {[%emt 0:00:14]} Kc8 {[%emt 0:00:59]} 28. Rc6+ {[%emt 0:00:36]} Kd7 {[%emt 0:00:15]} 29. Qc7+ {[%emt 0:00:27]} Ke8 {[%emt 0:00:06]} 30. Nd6# {[%emt 0:00:13]} 1-0

[Event "Romanian Women Championship 2024"]
[Site "Eforie Nord"]
[Date "2024.02.24"]
[Round "1.9"]
[White "Ciocirlan, Bianca-Alexandra"]
[Black "Obada, Ema"]
[Result "0-1"]
[ECO "B15"]
[WhiteElo "1542"]
[BlackElo "1969"]
[Annotator "NA RC"]
[PlyCount "72"]
[EventDate "2024.02.24"]
[EventType "swiss"]
[EventCountry "ROU"]
[SourceTitle "playchess.com"]
[Source "ChessBase"]
[SourceQuality "1"]
[TimeControl "40/5400+30:900+30"]

1. e4 {[%emt 0:00:01]} c6 {[%emt 0:00:06]} 2. d4 {[%emt 0:00:04]} d5 {[%emt 0:00:04]} 3. Nc3 {[%emt 0:00:04]} dxe4 {[%emt 0:00:07]} 4. Nxe4 {[%emt 0:00:05]} Nf6 {[%emt 0:00:04]} 5. Nxf6+ {[%emt 0:00:06]} exf6 {[%emt 0:00:05]} 6. Be3 {[%emt 0:00:17]} Bd6 {[%emt 0:00:10]} 7. Bd3 {[%emt 0:00:17]} O-O {[%emt 0:00:21]} 8. Nf3 {[%emt 0:01:03]} Re8 {[%emt 0:00:21]} 9. O-O {[%emt 0:01:48]} Nd7 {[%emt 0:00:40]} 10. c3 {[%emt 0:01:57]} Nf8 {[%emt 0:00:32]} 11. Qc2 {[%emt 0:02:20]} Qc7 {[%emt 0:04:03]} 12. c4 {[%emt 0:09:17]} Bg4 {[%emt 0:02:31]} 13. c5 {[%emt 0:01:25]} Bf4 {[%emt 0:14:54]} 14. Bxf4 {[%emt 0:03:37]} Qxf4 {[%emt 0:00:30]} 15. Qd2 {[%emt 0:01:55]} Qc7 {[%emt 0:20:18]} 16. Nh4 {[%emt 0:03:31]} Rad8 {[%emt 0:06:42]} 17. h3 {[%emt 0:02:25]} Be6 {[%emt 0:01:44]} 18. Rfd1 {[%emt 0:09:32]} g6 {[%emt 0:00:58]} 19. Nf3 {[%emt 0:03:46]} Rd7 {[%emt 0:09:56]} 20. b3 {[%emt 0:07:08]} Red8 {[%emt 0:02:29]} 21. Rac1 {[%emt 0:04:40]} Bd5 {[%emt 0:10:22]} 22. Ne1 {[%emt 0:16:00]} Ne6 {[%emt 0:00:40]} 23. Nc2 {[%emt 0:01:38]} Nf4 {[%emt 0:01:00]} 24. Ne3 {[%emt 0:02:06]} Bxg2 {[%emt 0:09:05]} 25. Nxg2 {[%emt 0:03:38]} Nxh3+ {[%emt 0:00:18]} 26. Kh1 {[%emt 0:01:24]} Rxd4 {[%emt 0:00:23]} 27. Ne1 {[%emt 0:11:08]} Rg4 {[%emt 0:01:18]} 28. Ng2 {[%emt 0:03:14]} Rxd3 {[%emt 0:00:14]} 29. Qe2 {[%emt 0:00:32]} Rgd4 {[%emt 0:07:25]} 30. Rxd3 {[%emt 0:00:54]} Rxd3 {[%emt 0:00:02]} 31. Rf1 {[%emt 0:00:09]} Qd7 {[%emt 0:00:14]} 32. Kh2 {[%emt 0:03:26]} Ng5 {[%emt 0:01:22]} 33. Nf4 {[%emt 0:01:06]} Rd4 {[%emt 0:01:58]} 34. Qe3 {[%emt 0:01:18]} Rxf4 {[%emt 0:00:16]} 35. Qxf4 {[%emt 0:01:12]} Qh3+ {[%emt 0:00:05]} 36. Kg1 {[%emt 0:00:06]} Nf3+ {[%emt 0:00:03]} 0-1

[Event "Romanian Women Championship 2024"]
[Site "Eforie Nord"]
[Date "2024.02.24"]
[Round "1.10"]
[White "Stanciu, Andreea-Briana"]
[Black "Badica, Ariana"]
[Result "1-0"]
[ECO "D02"]
[WhiteElo "1960"]
[BlackElo "1494"]
[Annotator "NA"]
[PlyCount "69"]
[EventDate "2024.02.24"]
[EventType "swiss"]
[EventCountry "ROU"]
[SourceTitle "playchess.com"]
[Source "ChessBase"]
[SourceQuality "1"]
[TimeControl "40/5400+30:900+30"]

1. d4 {[%emt 0:00:03]} Nf6 {[%emt 0:00:11]} 2. Nf3 {[%emt 0:00:06]} d5 {[%emt 0:00:06]} 3. Bf4 {[%emt 0:00:17]} e6 {[%emt 0:00:29]} 4. e3 {[%emt 0:00:14]} c5 {[%emt 0:00:09]} 5. c3 {[%emt 0:00:09]} Nc6 {[%emt 0:00:35]} 6. Bd3 {[%emt 0:00:14]} Bd6 {[%emt 0:02:18]} 7. Bg3 {[%emt 0:00:05]} O-O {[%emt 0:00:14]} 8. Nbd2 {[%emt 0:00:05]} Qc7 {[%emt 0:02:49]} 9. dxc5 {[%emt 0:00:47]} Bxg3 {[%emt 0:00:58]} 10. hxg3 {[%emt 0:00:04]} e5 {[%emt 0:01:29]} 11. e4 {[%emt 0:03:40]} Rd8 {[%emt 0:03:26]} 12. exd5 {[%emt 0:03:06]} Rxd5 {[%emt 0:02:46]} 13. Qc2 {[%emt 0:01:33]} h6 {[%emt 0:02:08]} 14. b4 {[%emt 0:01:23]} a5 {[%emt 0:05:05]} 15. Ne4 {[%emt 0:01:39]} Nxe4 {[%emt 0:03:53]} 16. Bxe4 {[%emt 0:02:24]} Rd8 {[%emt 0:00:13]} 17. O-O {[%emt 0:05:04]} Be6 {[%emt 0:10:34]} 18. a4 {[%emt 0:03:46]} Bd5 {[%emt 0:01:39]} 19. Rfd1 {[%emt 0:04:22]} Bxe4 {[%emt 0:01:56]} 20. Rxd8+ {[%emt 0:01:00]} Rxd8 {[%emt 0:00:39]} 21. Qxe4 {[%emt 0:00:05]} axb4 {[%emt 0:21:07]} 22. cxb4 {[%emt 0:00:12]} Nd4 {[%emt 0:02:16]} 23. Nxe5 {[%emt 0:04:15]} f5 {[%emt 0:01:50]} 24. Qe3 {[%emt 0:01:39]} Nc2 {[%emt 0:23:42]} 25. Qb3+ {[%emt 0:00:05]} Kh7 {[%emt 0:00:10]} 26. Qxc2 {[%emt 0:00:27]} Qxe5 {[%emt 0:00:07]} 27. Rc1 {[%emt 0:04:08]} Rd4 {[%emt 0:01:59]} 28. b5 {[%emt 0:00:16]} Qd5 {[%emt 0:00:55]} 29. c6 {[%emt 0:01:09]} Rd2 {[%emt 0:04:48]} 30. Qc4 {[%emt 0:00:57]} Rd1+ {[%emt 0:03:50]} 31. Kh2 {[%emt 0:00:05]} Qxc4 {[%emt 0:02:55]} 32. Rxc4 {[%emt 0:00:05]} bxc6 {[%emt 0:00:23]} 33. bxc6 {[%emt 0:00:17]} Rd8 {[%emt 0:00:33]} 34. c7 {[%emt 0:00:04]} Rc8 {[%emt 0:00:13]} 35. a5 {[%emt 0:00:24]} 1-0

[Event "Romanian Women Championship 2024"]
[Site "Eforie Nord"]
[Date "2024.02.24"]
[Round "1.11"]
[White "Vorniceanu, Alina"]
[Black "Maria, Lia-Alexandra"]
[Result "1-0"]
[ECO "D02"]
[WhiteElo "1476"]
[BlackElo "1937"]
[Annotator "NA RC"]
[PlyCount "65"]
[EventDate "2024.02.24"]
[EventType "swiss"]
[EventCountry "ROU"]
[SourceTitle "playchess.com"]
[Source "ChessBase"]
[SourceQuality "1"]
[TimeControl "40/5400+30:900+30"]

1. d4 {[%emt 0:00:05]} Nf6 {[%emt 0:00:06]} 2. Bf4 {[%emt 0:00:04]} d5 {[%emt 0:00:10]} 3. e3 {[%emt 0:00:09]} e6 4. Nd2 {[%emt 1:32:12]} Bd6 {[%emt 0:01:04]} 5. Bg3 {[%emt 0:00:30]} O-O {[%emt 0:00:40]} 6. Ngf3 {[%emt 0:00:00]} c5 {[%emt 0:00:10]} 7. c3 {[%emt 0:00:00]} Qc7 {[%emt 0:00:56]} 8. Bd3 {[%emt 0:00:00]} Nbd7 {[%emt 0:01:09]} 9. O-O {[%emt 0:00:00]} c4 {[%emt 0:02:02]} 10. Bc2 {[%emt 0:00:00]} b5 {[%emt 0:01:09]} 11. Bxd6 {[%emt 0:00:00]} Qxd6 {[%emt 0:00:06]} 12. e4 {[%emt 0:00:00]} dxe4 {[%emt 0:01:04]} 13. Nxe4 {[%emt 0:00:00]} Nxe4 {[%emt 0:01:11]} 14. Bxe4 {[%emt 0:00:00]} Rb8 {[%emt 0:00:07]} 15. a3 {[%emt 0:00:00]} Nf6 {[%emt 0:01:03]} 16. Re1 {[%emt 0:00:00]} a5 {[%emt 0:01:46]} 17. Nd2 {[%emt 0:00:00]} Ba6 {[%emt 0:04:16]} 18. Re3 {[%emt 0:00:00]} Rfc8 {[%emt 0:07:28]} 19. Rg3 {[%emt 0:00:00]} e5 {[%emt 0:09:23]} 20. dxe5 {[%emt 0:01:42]} Qxe5 {[%emt 0:00:45]} 21. Re3 {[%emt 0:00:31]} Qf4 {[%emt 0:03:35]} 22. g3 {[%emt 0:03:14]} Qd6 {[%emt 0:00:19]} 23. Nf3 {[%emt 0:02:10]} Qc7 {[%emt 0:06:25]} 24. Nd4 {[%emt 0:00:25]} Re8 {[%emt 0:03:56]} 25. Qe2 {[%emt 0:00:50]} Nxe4 {[%emt 0:09:00]} 26. Rxe4 {[%emt 0:00:08]} Rxe4 {[%emt 0:00:03]} 27. Qxe4 {[%emt 0:00:01]} Bb7 {[%emt 0:01:03]} 28. Qe3 {[%emt 0:00:35]} h6 {[%emt 0:00:49]} 29. Re1 {[%emt 0:00:29]} Qd7 {[%emt 0:01:37]} 30. Qe5 {[%emt 0:01:13]} Bd5 {[%emt 0:02:29]} 31. Qxb8+ {[%emt 0:00:23]} Kh7 {[%emt 0:00:13]} 32. Qe5 {[%emt 0:00:31]} Qb7 {[%emt 0:02:21]} 33. f3 {[%emt 0:00:36]} 1-0

[Event "Romanian Women Championship 2024"]
[Site "Eforie Nord"]
[Date "2024.02.24"]
[Round "1.12"]
[White "Sava, Ana-Maria"]
[Black "Kiss, Hanna"]
[Result "1/2-1/2"]
[ECO "C22"]
[WhiteElo "1916"]
[BlackElo "1446"]
[Annotator "NA"]
[PlyCount "67"]
[EventDate "2024.02.24"]
[EventType "swiss"]
[EventCountry "ROU"]
[SourceTitle "playchess.com"]
[Source "ChessBase"]
[SourceQuality "1"]
[TimeControl "40/5400+30:900+30"]

1. e4 {[%emt 0:00:04]} e5 {[%emt 0:00:05]} 2. d4 {[%emt 0:00:08]} exd4 {[%emt 0:00:09]} 3. Qxd4 {[%emt 0:00:09]} Nc6 {[%emt 0:00:09]} 4. Qe3 {[%emt 0:00:09]} Nf6 {[%emt 0:00:24]} 5. Nc3 {[%emt 0:00:12]} Bb4 {[%emt 0:00:35]} 6. Bd2 {[%emt 0:00:10]} O-O {[%emt 0:00:45]} 7. O-O-O {[%emt 0:00:10]} d6 {[%emt 0:00:48]} 8. f4 {[%emt 0:00:47]} Re8 {[%emt 0:10:46]} 9. Bd3 {[%emt 0:00:47]} d5 {[%emt 0:08:14]} 10. Qe2 {[%emt 0:08:30]} Bg4 {[%emt 0:13:46]} 11. Nf3 {[%emt 0:01:10]} dxe4 {[%emt 0:01:35]} 12. Nxe4 {[%emt 0:00:57]} Nxe4 {[%emt 0:08:48]} 13. Bxe4 {[%emt 0:00:12]} Qe7 {[%emt 0:04:01]} 14. Rhe1 {[%emt 0:06:41]} Bxd2+ {[%emt 0:11:24]} 15. Qxd2 {[%emt 0:01:27]} Qf6 {[%emt 0:04:49]} 16. Bxc6 {[%emt 0:03:13]} Qxc6 {[%emt 0:02:04]} 17. Ne5 {[%emt 0:01:22]} Rxe5 {[%emt 0:06:35]} 18. Rxe5 {[%emt 0:03:56]} Bxd1 {[%emt 0:00:17]} 19. Kxd1 {[%emt 0:00:23]} Re8 {[%emt 0:04:25]} 20. Rxe8+ {[%emt 0:00:47]} Qxe8 {[%emt 0:00:07]} 21. Qd4 {[%emt 0:00:14]} b6 {[%emt 0:01:12]} 22. Kd2 {[%emt 0:00:12]} h6 {[%emt 0:03:08]} 23. g4 {[%emt 0:01:55]} Qc6 {[%emt 0:01:53]} 24. Qd8+ {[%emt 0:06:22]} Kh7 {[%emt 0:00:15]} 25. Qd3+ {[%emt 0:00:03]} Kg8 {[%emt 0:00:42]} 26. a3 {[%emt 0:01:52]} Qf6 {[%emt 0:02:57]} 27. Qe4 {[%emt 0:04:54]} Qxb2 {[%emt 0:05:34]} 28. Qe8+ {[%emt 0:00:26]} Kh7 {[%emt 0:00:08]} 29. Qxf7 {[%emt 0:00:14]} Qd4+ {[%emt 0:00:24]} 30. Kc1 {[%emt 0:01:29]} Qa1+ {[%emt 0:03:13]} 31. Kd2 {[%emt 0:00:09]} Qd4+ {[%emt 0:00:20]} 32. Kc1 {[%emt 0:00:08]} Qa1+ {[%emt 0:01:35]} 33. Kd2 {[%emt 0:00:08]} Qd4+ {[%emt 0:00:42]} 34. Kc1 {[%emt 0:00:08]} 1/2-1/2

[Event "Romanian Women Championship 2024"]
[Site "Eforie Nord"]
[Date "2024.02.25"]
[Round "2.1"]
[White "Paraschiv, Petronela-Alexandra"]
[Black "Sandu, Mihaela"]
[Result "0-1"]
[ECO "D02"]
[WhiteElo "1875"]
[BlackElo "2265"]
[Annotator "TA"]
[PlyCount "50"]
[EventDate "2024.02.24"]
[EventType "swiss"]
[EventCountry "ROU"]
[SourceTitle "playchess.com"]
[Source "ChessBase"]
[SourceQuality "1"]
[TimeControl "40/5400+30:900+30"]

{[%evp 11,50,-3,-13,-1,-2,-18,0,-10,6,0,-2,-3,4,25,28,16,16,0,0,-44,-39,-28,-40,-129,37,27,0,-856,-817,-2561,-2538,-2813,-2479,-29990,-29991,-29992,-29993,-29993,-29994,-29995,-29996]} 1. d4 {[%emt 0:00:02]} Nf6 {[%emt 0:00:05]} 2. Nf3 {[%emt 0:00:07]} e6 {[%emt 0:00:11]} 3. Bf4 {[%emt 0:00:25]} d5 {[%emt 0:01:06]} 4. e3 {[%emt 0:00:29]} Bd6 {[%emt 0:00:52]} 5. Bg3 {[%emt 0:00:57]} O-O {[%emt 0:00:47]} 6. Bd3 {[%emt 0:01:54]} c5 {[%emt 0:00:28]} 7. c3 {[%emt 0:01:12]} Qc7 {[%emt 0:02:19]} 8. dxc5 {[%emt 0:00:31]} Qxc5 {[%emt 0:00:37]} 9. Nbd2 {[%emt 0:01:18] Die Stellung ist ausgeglichen.} Nbd7 {[%emt 0:07:43]} 10. e4 {[%emt 0:04:29]} Bxg3 {[%emt 0:26:53]} 11. hxg3 {[%emt 0:00:13] Droht stark e5.} g6 {[%emt 0:01:36]} 12. Qe2 {[%emt 0:05:46]} Qc7 {[%emt 0:12:51]} 13. O-O-O {[%emt 0:12:11]} b5 {[%emt 0:17:44][%cal Bb7b5,Bb5b4][%mdl 32]} 14. e5 {[%emt 0:03:50]} Ng4 {[%emt 0:01:02]} 15. Ng5 {[%emt 0:29:07]} h5 {[%emt 0:00:28]} (15... Ngxe5 16. Nxh7 (16. Rxh7 b4 $11) 16... b4 17. Nxf8 Kxf8 18. c4 $18) 16. f4 {[%emt 0:05:44][%cal Og5f7] Droht Nxf7! und aus.} Nc5 $1 {[%emt 0:00:20][%cal Ob5b4] ...b4! ist eine echte Drohung.} 17. Bc2 {[%emt 0:00:36] [#]} (17. Nb3 $15) 17... Rb8 $2 {[%emt 0:03:54]} (17... b4 $1 $17 {[%cal Rb4c3] Und jetzt ...bxc3 wäre schön.} 18. Qf3 (18. cxb4 $2 Ba6 $19) 18... Ba6) 18. Rh4 {[%emt 0:03:25]} (18. Nh7 $5 Rd8 19. Rxh5 gxh5 20. Rh1 $11) 18... b4 {[%emt 0:00:48]} 19. Rdh1 $2 {[%emt 0:03:05][%mdl 8192]} (19. Qxg4 $11 bxc3 (19... hxg4 20. Rdh1) 20. Nh7) 19... bxc3 $19 {[%emt 0:01:58] Weiss muss nun ...Ba6 beachten.} 20. Qxg4 {[%emt 0:09:25]} Nd3+ {[%emt 0:01:34]} (20... cxd2+ 21. Kd1 f5 (21... hxg4 22. Rh8+ Kg7 23. R1h7#) (21... Rxb2 22. Rxh5) 22. exf6 $11) (20... Rxb2 $2 21. Rxh5 $18) (20... cxb2+ 21. Kb1 f6 (21... hxg4 22. Rh8+ Kg7 23. R1h7#) 22. Ngf3 $18) 21. Bxd3 {[%emt 0:01:20]} cxd2+ {[%emt 0:00:10]} (21... hxg4 22. Rh8+ Kg7 23. R1h7#) 22. Kb1 {[%emt 0:04:30]} Qc3 {[%emt 0:00:37][%csl Gb8][%cal Rc3b2] Schwarz setzt Matt.} ({Minderwertig wäre} 22... hxg4 23. Rh8+ Kg7 24. R1h7#) 23. b3 {[%emt 0:01:02]} Qxd3+ {[%emt 0:00:50]} (23... hxg4 24. Rh8+ Kg7 25. R1h7#) 24. Kb2 {[%emt 0:00:14]} Qd4+ {[%emt 0:00:05]} ({Schlechter ist} 24... hxg4 25. Rh8+ Kg7 26. R1h7#) 25. Kc2 {[%emt 0:07:54]} Ba6 {[%emt 0:00:44] Gewichteter Fehlerwert: Weiß=1.25/Schwarz=0.12 (sehr präzise) .  Verlustzug:     	Weiß=1     	---        Fehler:       	Weiß=1     	Schwarz=1     Ungenau:       	Weiß=2     	---        OK:         	Weiß=2     	Schwarz=4     Bester:       	---       	Schwarz=2     Stark:        	---       	Schwarz=1} ({Schwächer ist} 25... hxg4 26. Rh8+ Kg7 27. R1h7#) 0-1